[Event "DVM U16 2019"]
[Site "Magedburg"]
[Date "2019.12.27"]
[Round "1"]
[White "Wagner, Victoria"]
[Black "Grabbel, Lennart Christian"]
[Result "1-0"]
[ECO "C50"]
[WhiteElo "1797"]
[BlackElo "1849"]
[Annotator "NA"]
[PlyCount "89"]
[EventDate "2019.12.27"]
[EventType "team-tourn"]
[EventRounds "7"]
[EventCountry "GER"]
[SourceTitle "playchess.com"]
[Source "ChessBase"]
[SourceQuality "1"]
[WhiteTeam "Erfurter SK"]
[BlackTeam "Hamburger SK"]
[TimeControl "40/5400+30:1800+30"]

1. e4 e5 2. Nf3 Nc6 3. Bc4 Bc5 4. O-O Nf6 5. d3 O-O 6. c3 d5 7. exd5 Nxd5 8. Re1 Bg4 {unterminated} 9. Nbd2 {C54: Giuoco Piano: 4 c3 Nf6, main lines with 5 d4 and 5 d3} Nb6 {unterminated} 10. Ne4 {unterminated} (10. h3 Bh5 11. Bb3 Qxd3 12. Nxe5 Bxd1 13. Nxd3 Bxb3 14. axb3 Be7 15. b4 a6 16. Ne4 Nd7 {1-0 (40) Giri,A (2797)-Harikrishna,P (2723) Shenzhen 2019}) 10... Nxc4 11. Nxc5 Nd6 {unterminated} 12. Ne4 {unterminated} Kh8 $146 {unterminated} ({Predecessor:} 12... Nxe4 13. Rxe4 f5 14. Re1 Kh8 15. Qe2 Qd7 16. Qe3 Rae8 17. d4 f4 18. Qe4 exd4 19. cxd4 Bxf3 20. Qxf3 Nxd4 21. Qd3 f3 {0-1 (21) Celmer,O (1852)-Arnaudov,P (2471) Norderstedt 2013}) 13. Ng3 {unterminated} f6 14. h3 Bc8 15. d4 exd4 16. Nxd4 Nxd4 {unterminated} 17. Qxd4 b6 {unterminated} 18. Bf4 Bb7 19. Rad1 Rf7 20. Nf5 Rd7 21. Bxd6 cxd6 22. Re6 Qg8 23. Rde1 d5 24. Nd6 Rad8 25. Nf5 Bc8 26. Ne7 Qf7 27. Qe3 Rc7 28. Nxc8 Rcxc8 29. Re7 d4 30. Rxf7 dxe3 31. Rxe3 Rd1+ 32. Kh2 Rd2 33. Ree7 Rg8 34. Rxa7 Rxf2 35. b4 Rc2 36. Rfb7 Rxc3 37. Rxb6 Rc2 38. Rbb7 Rb2 39. b5 Re8 40. a4 h6 {unterminated} 41. Rxg7 Ree2 {unterminated} 42. Rg6 f5 {unterminated} 43. Rf7 Rf2 {unterminated} 44. Rfg7 h5 45. b6 $18 {normal} (45. Rg8+ $142 Kh7 46. R6g7+ Kh6 47. Rg3 Kh7 48. R8g7+ Kh8 49. R7g5 Rxg2+ 50. Rxg2) 1-0

[Event "DVM U16 2019"]
[Site "Magedburg"]
[Date "2019.12.27"]
[Round "1"]
[White "Klaas, Heiko"]
[Black "Seinsoth, Paul"]
[Result "*"]
[ECO "B23"]
[WhiteElo "1759"]
[BlackElo "1629"]
[Annotator "NA RC"]
[PlyCount "64"]
[EventDate "2019.12.27"]
[EventType "team-tourn"]
[EventRounds "7"]
[EventCountry "GER"]
[SourceTitle "playchess.com"]
[Source "ChessBase"]
[SourceQuality "1"]
[WhiteTeam "Hamburger SK"]
[BlackTeam "Erfurter SK"]
[TimeControl "40/5400+30:1800+30"]

1. e4 c5 2. Nc3 a6 3. Nf3 b5 4. d4 cxd4 5. Nxd4 Bb7 6. Be3 d6 7. Qd2 Nc6 8. f3 Qc7 9. Nd5 Qd8 10. Nxc6 Bxc6 11. Bb6 Qb8 12. Nc7+ Kd7 13. Nxa8 Bxa8 14. Be3 e6 15. O-O-O Be7 16. Qa5 Qc8 17. Bf4 d5 18. Bd3 Nf6 19. Rhe1 Rd8 20. g4 h6 21. e5 Ne8 22. Be3 Nc7 23. f4 Ke8 24. f5 d4 25. f6 gxf6 26. exf6 Bf8 27. Bf2 Bf3 28. Be2 Bxe2 29. Rxe2 Nd5 30. Rxd4 Bc5 {unterminated} 31. Rde4 {unterminated} Nxf6 {unterminated} 32. Bxc5 Qxc5 {unterminated} *

[Event "DVM U16 2019"]
[Site "Magedburg"]
[Date "2019.12.27"]
[Round "1"]
[White "Janke, Julian"]
[Black "Seidel, Arne Christian"]
[Result "1/2-1/2"]
[ECO "A45"]
[WhiteElo "1659"]
[BlackElo "1636"]
[Annotator "NA RC"]
[PlyCount "102"]
[EventDate "2019.12.27"]
[EventType "team-tourn"]
[EventRounds "7"]
[EventCountry "GER"]
[SourceTitle "playchess.com"]
[Source "ChessBase"]
[SourceQuality "1"]
[WhiteTeam "SK BS Paderborn"]
[BlackTeam "Reideburger SV 90 Halle"]
[TimeControl "40/5400+30:1800+30"]

1. d4 {[%emt 0:00:00]} Nf6 {[%emt 0:00:00]} 2. Bf4 {[%emt 0:00:02]} e6 {[%emt 0:00:15]} 3. e3 {[%emt 0:01:20]} c5 {[%emt 0:00:55]} 4. c3 {[%emt 0:01:18]} Qb6 {[%emt 0:04:31]} 5. Qb3 {[%emt 0:03:09]} cxd4 {[%emt 0:01:00]} 6. Qxb6 {[%emt 0:06:38]} axb6 {[%emt 0:00:07]} 7. exd4 {[%emt 0:00:44]} Nc6 {[%emt 0:03:33]} 8. Nf3 {[%emt 0:02:52]} d5 {[%emt 0:05:55]} 9. Bc7 {[%emt 0:03:52]} Nd7 {[%emt 0:00:36]} 10. Bb5 {[%emt 0:04:18]} Be7 {[%emt 0:12:09]} 11. Nbd2 {[%emt 0:15:15]} Bd8 {[%emt 0:03:19]} 12. Bxd8 {[%emt 0:01:11]} Kxd8 {[%emt 0:01:39]} 13. O-O {[%emt 0:01:57]} Na7 {[%emt 0:00:54]} 14. Bd3 {[%emt 0:00:42]} h6 {[%emt 0:01:30]} 15. Ne5 {[%emt 0:09:04]} Nxe5 {[%emt 0:00:30]} 16. dxe5 {[%emt 0:00:07]} b5 {[%emt 0:01:45]} 17. f4 {[%emt 0:02:18]} g6 {[%emt 0:00:38]} 18. a4 {[%emt 0:06:54]} bxa4 {[%emt 0:01:32]} 19. Rxa4 {[%emt 0:00:12]} Bd7 {[%emt 0:00:07]} 20. Rb4 {[%emt 0:00:55]} Kc7 {[%emt 0:00:44]} 21. c4 {[%emt 0:01:17]} Nc6 {[%emt 0:01:31]} 22. Rb3 {[%emt 0:02:53]} Nd4 {[%emt 0:11:27]} 23. Rc3 {[%emt 0:04:35]} Bc6 {[%emt 0:00:08]} 24. cxd5 {[%emt 0:03:37]} exd5 {[%emt 0:00:03]} 25. Nb3 {[%emt 0:04:01]} Nxb3 {[%emt 0:01:35]} 26. Rxb3 {[%emt 0:00:08]} Ra4 {[%emt 0:01:03]} 27. f5 {[%emt 0:03:04]} g5 {[%emt 0:01:43]} 28. Rc3 {[%emt 0:04:34]} Rb4 {[%emt 0:01:36]} 29. b3 {[%emt 0:04:26]} Re8 {[%emt 0:08:47]} 30. Re1 {[%emt 0:00:39]} d4 {[%emt 0:01:19]} 31. Rc4 {[%emt 0:00:33]} Rxb3 {[%emt 0:00:07]} 32. Rxd4 {[%emt 0:00:21]} Rb2 {[%emt 0:00:08]} 33. Bf1 {[%emt 0:01:34]} Rd8 {[%emt 0:01:21]} 34. Rxd8 {[%emt 0:05:08]} Kxd8 {[%emt 0:00:07]} 35. e6 {[%emt 0:00:14]} f6 {[%emt 0:00:57]} 36. g4 {[%emt 0:05:16]} Ke7 {[%emt 0:09:15]} 37. Re3 {[%emt 0:02:21]} Rb4 {[%emt 0:02:47]} 38. Be2 {[%emt 0:00:44]} Re4 {[%emt 0:00:16]} 39. Rxe4 {[%emt 0:00:28]} Bxe4 {[%emt 0:00:02]} 40. Kf2 {[%emt 0:00:07]} Bc6 {[%emt 0:03:04]} 41. Bf3 {[%emt 0:02:19]} Ba4 {[%emt 0:02:37]} 42. Bxb7 {[%emt 0:01:06]} Bc2 {[%emt 0:00:31]} 43. Ke3 {[%emt 0:02:56]} Bd1 {[%emt 0:00:17]} 44. Bf3 {[%emt 0:00:17]} Ba4 {[%emt 0:00:07]} 45. Be2 {[%emt 0:01:17]} Bc6 {[%emt 0:00:19]} 46. Bd3 {[%emt 0:00:19]} Bg2 {[%emt 0:00:35]} 47. Kf2 {[%emt 0:00:07]} Bc6 {[%emt 0:00:08]} 48. Kg3 {[%emt 0:00:06]} Ba4 {[%emt 0:00:41]} 49. Be2 {[%emt 0:00:13]} Bc2 {[%emt 0:00:13]} 50. h4 {[%emt 0:00:10]} Be4 {[%emt 0:00:38]} 51. hxg5 {[%emt 0:01:41]} hxg5 {[%emt 0:00:09] normal} 1/2-1/2

[Event "DVM U16 2019"]
[Site "Magedburg"]
[Date "2019.12.27"]
[Round "1"]
[White "Afonso, Phil"]
[Black "Ponomarev, Maximilian"]
[Result "0-1"]
[ECO "B43"]
[WhiteElo "1650"]
[BlackElo "2046"]
[Annotator "NA RC"]
[PlyCount "66"]
[EventDate "2019.12.27"]
[EventType "team-tourn"]
[EventRounds "7"]
[EventCountry "GER"]
[SourceTitle "playchess.com"]
[Source "ChessBase"]
[SourceQuality "1"]
[WhiteTeam "SF 59 Kornwestheim"]
[BlackTeam "SK München Südost"]
[WhiteTeamCountry "GER"]
[TimeControl "40/5400+30:1800+30"]

1. e4 {[%emt 0:00:00]} c5 {[%emt 0:00:00]} 2. Nf3 {[%emt 0:00:00]} e6 {[%emt 0:00:00]} 3. d4 {[%emt 0:00:00]} cxd4 {[%emt 0:00:00]} 4. Nxd4 {[%emt 0:00:09]} a6 {[%emt 0:00:00]} 5. Nc3 {[%emt 0:00:31]} Qc7 {[%emt 0:00:00]} 6. Bd3 {[%emt 0:00:25]} Nf6 {[%emt 0:00:02]} 7. O-O {[%emt 0:01:08]} Bc5 {[%emt 0:00:12]} 8. Nb3 {[%emt 0:00:55]} Be7 {[%emt 0:00:10]} 9. Be3 {[%emt 0:00:47] B43: Sicilian: Kan Variation: 5 Nc3} (9. f4 d6 10. e5 dxe5 11. fxe5 Nfd7 12. Qg4 g6 13. Bf4 Nc6 14. Rae1 Ndxe5 15. Qg3 f6 16. Be4 O-O 17. Kh1 Bd7 18. Bxg6 hxg6 19. Rxe5 Nxe5 20. Bxe5 fxe5 21. Qxg6+ Kh8 22. Qh6+ Kg8 23. Qg6+ {½-½ (23) Kadric,D (2537)-Akopian,V (2655) Abu Dhabi 2018}) 9... O-O {[%emt 0:00:10] unterminated} 10. f4 {[%emt 0:01:00] unterminated} d6 {[%emt 0:17:31] unterminated} 11. Rf3 $146 {[%emt 0:04:12] unterminated} ({Predecessor:} 11. a4 b6 12. g4 Nc6 13. g5 Nd7 14. Rf3 g6 15. h4 Nc5 16. h5 Re8 17. Rh3 Nxd3 18. cxd3 {1-0 (25) Ahmadzada,A (2337)-Simantsev,M (2401) Baku 2019}) 11... Nbd7 {[%emt 0:04:57] unterminated} 12. Rg3 {[%emt 0:05:25] unterminated} Kh8 {[%emt 0:07:44]} 13. Qe2 {[%emt 0:04:12] unterminated} b5 {[%emt 0:05:14] unterminated} 14. a3 {[%emt 0:01:00]} Bb7 {[%emt 0:00:12] unterminated} 15. Rh3 {[%emt 0:06:40] unterminated} Rfe8 {[%emt 0:13:19]} 16. Nd2 {[%emt 0:03:32] unterminated} Nc5 {[%emt 0:04:35] unterminated} (16... e5 $11) 17. Bxc5 {[%emt 0:09:35]} ({White should play} 17. Rf1) 17... Qxc5+ {[%emt 0:00:36]} 18. Kf1 {[%emt 0:00:28] unterminated} e5 {[%emt 0:01:38]} 19. f5 {[%emt 0:02:07] unterminated} Rad8 $15 {[%emt 0:04:51]} 20. Nf3 {[%emt 0:02:22]} Kg8 {[%emt 0:01:55]} 21. Rd1 {[%emt 0:10:42]} Bf8 {[%emt 0:03:29]} 22. Qf2 {[%emt 0:01:28]} Qxf2+ {[%emt 0:01:45]} 23. Kxf2 {[%emt 0:00:09]} d5 {[%emt 0:00:08]} 24. exd5 {[%emt 0:00:42]} e4 {[%emt 0:00:29]} 25. Nxe4 {[%emt 0:04:01]} Nxe4+ {[%emt 0:00:44]} 26. Bxe4 {[%emt 0:01:02]} Rxe4 {[%emt 0:02:08]} 27. Ng5 {[%emt 0:01:10]} Rf4+ {[%emt 0:01:14]} 28. Kg3 {[%emt 0:00:51]} Bd6 {[%emt 0:01:18]} 29. Rd3 {[%emt 0:02:52]} Rxf5+ {[%emt 0:00:05]} 30. Kg4 {[%emt 0:00:18]} Rf4+ {[%emt 0:01:11]} 31. Kg3 {[%emt 0:00:21]} Bc8 {[%emt 0:02:27]} 32. Rh4 {[%emt 0:01:49]} Rg4+ {[%emt 0:00:18]} 33. Kh3 {[%emt 0:01:02]} Rg3# {normal} 0-1

[Event "DVM U16 2019"]
[Site "Magedburg"]
[Date "2019.12.27"]
[Round "1"]
[White "Rabe, Maximilian"]
[Black "Biermann, Lenhard"]
[Result "0-1"]
[ECO "C00"]
[WhiteElo "1569"]
[BlackElo "2098"]
[Annotator "NA RC"]
[PlyCount "66"]
[EventDate "2019.12.27"]
[EventType "team-tourn"]
[EventRounds "7"]
[EventCountry "GER"]
[SourceTitle "playchess.com"]
[Source "ChessBase"]
[SourceQuality "1"]
[WhiteTeam "Delmenhorster SK"]
[BlackTeam "SG Bochum"]
[TimeControl "40/5400+30:1800+30"]

1. e4 {[%emt 0:00:00]} e6 {[%emt 0:00:00]} 2. d4 {[%emt 0:00:00]} d5 {[%emt 0:00:00]} 3. Bd3 {[%emt 0:00:00]} dxe4 {[%emt 0:03:51]} 4. Bxe4 {[%emt 0:00:54] unterminated} Nf6 {[%emt 0:00:32] unterminated} 5. Bf3 {[%emt 0:02:18] unterminated} Be7 {[%emt 0:02:53] unterminated} 6. Ne2 {[%emt 0:03:39] C01: French: Exchange Variation} O-O {[%emt 0:00:39] unterminated} 7. O-O {[%emt 0:01:44] unterminated} Nbd7 {[%emt 0:10:07] unterminated} 8. c4 {[%emt 0:21:52] unterminated} e5 {[%emt 0:09:10] unterminated} 9. Nbc3 {[%emt 0:07:37] unterminated} Re8 $146 {[%emt 0:10:02] unterminated} ({Predecessor:} 9... exd4 10. Nxd4 Ne5 11. Be2 c6 12. Bf4 {0-1 (50) Sudakova,I (2350)-Swiercz,D (2584) Warsaw 2011}) 10. Re1 {[%emt 0:12:39] unterminated} c6 {[%emt 0:23:10] unterminated} 11. Kf1 {[%emt 0:07:30] unterminated} Bf8 {[%emt 0:04:02] unterminated} 12. Ng3 {[%emt 0:03:35]} exd4 {[%emt 0:02:51]} 13. Qxd4 {[%emt 0:06:37]} Rxe1+ {[%emt 0:00:51]} 14. Kxe1 {[%emt 0:00:11]} Bc5 {[%emt 0:00:22]} 15. Qd3 {[%emt 0:02:50] unterminated} Qe7+ {[%emt 0:02:39] unterminated} 16. Be2 {[%emt 0:03:22]} Ne5 {[%emt 0:01:01]} 17. Qc2 {[%emt 0:02:01] unterminated} Nxc4 {[%emt 0:11:51] unterminated} 18. Kf1 {[%emt 0:08:33] unterminated} Nd6 {[%emt 0:06:20]} 19. Bf4 {[%emt 0:03:08] unterminated} Be6 {[%emt 0:02:48]} 20. Rd1 {[%emt 0:01:55]} Rd8 {[%emt 0:02:40] unterminated} 21. Bf3 {[%emt 0:03:26]} Bb6 {[%emt 0:02:51] unterminated} 22. b3 {[%emt 0:02:30]} Bc7 {[%emt 0:00:55] unterminated} 23. Qc1 {[%emt 0:01:18]} Nde8 {[%emt 0:00:30] unterminated} 24. Rxd8 {[%emt 0:00:44] unterminated} Qxd8 {[%emt 0:00:05] unterminated} 25. Bxc7 {[%emt 0:01:09]} Nxc7 {[%emt 0:00:03]} 26. Qe3 {[%emt 0:00:13] unterminated} a6 {[%emt 0:01:30] unterminated} 27. Nce4 {[%emt 0:02:04] unterminated} Nxe4 {[%emt 0:00:54]} 28. Nxe4 {[%emt 0:00:07]} Nd5 {[%emt 0:00:25]} 29. Qd2 {[%emt 0:01:02]} Qe7 {[%emt 0:00:17]} 30. Nc3 {[%emt 0:00:57]} Nxc3 {[%emt 0:00:09]} 31. Qxc3 {[%emt 0:00:03] unterminated} Qd6 {[%emt 0:00:18]} 32. h3 {[%emt 0:00:43]} h6 {[%emt 0:00:27] unterminated} 33. Ke2 {[%emt 0:00:42]} Bd5 $17 {[%emt 0:00:14] normal} 0-1

[Event "DVM U16 2019"]
[Site "Magedburg"]
[Date "2019.12.27"]
[Round "2"]
[White "Köllner, Ruben Gideon"]
[Black "Bosselmann, Tom Linus"]
[Result "1-0"]
[ECO "A48"]
[WhiteElo "2330"]
[BlackElo "2077"]
[Annotator "NA"]
[PlyCount "39"]
[EventDate "2019.12.27"]
[EventType "team-tourn"]
[EventRounds "7"]
[EventCountry "GER"]
[SourceTitle "playchess.com"]
[Source "ChessBase"]
[SourceQuality "1"]
[WhiteTeam "SG Bochum"]
[BlackTeam "Lübecker SV"]
[BlackTeamCountry "GER"]
[TimeControl "40/5400+30:1800+30"]

1. d4 {[%emt 0:00:00]} g6 {[%emt 0:00:10]} 2. Nf3 {[%emt 0:00:00]} Nf6 {[%emt 0:00:04]} 3. Nbd2 {[%emt 0:00:00]} Bg7 {[%emt 0:00:21]} 4. e4 {[%emt 0:00:00]} d6 {[%emt 0:00:13]} 5. Bc4 {[%emt 0:00:02]} O-O {[%emt 0:00:58]} 6. O-O {[%emt 0:00:19]} c6 {[%emt 0:00:09]} 7. c3 {[%emt 0:00:13]} b5 {[%emt 0:01:06]} 8. Bb3 {[%emt 0:03:37]} Bb7 {[%emt 0:01:16]} 9. Re1 {[%emt 0:02:18]} Nbd7 {[%emt 0:01:13]} 10. e5 {[%emt 0:02:35]} dxe5 {[%emt 0:00:29]} 11. dxe5 {[%emt 0:00:11]} Nd5 {[%emt 0:01:24]} 12. e6 {[%emt 0:11:51]} fxe6 {[%emt 0:03:10]} 13. Ng5 {[%emt 0:09:59]} Qb6 {[%emt 0:09:22]} 14. Ndf3 {[%emt 0:04:07]} Nc5 {[%emt 0:09:17]} 15. Nxe6 {[%emt 0:11:27]} Nxe6 {[%emt 0:00:25]} 16. Rxe6 {[%emt 0:00:05]} Qc7 {[%emt 0:00:34]} 17. Qe2 {[%emt 0:00:41]} Bf6 {[%emt 0:03:45]} 18. Bg5 {[%emt 0:04:57]} Kf7 {[%emt 0:09:48]} 19. Re1 {[%emt 0:02:26]} Rfe8 {[%emt 0:00:59]} 20. Bxf6 {[%emt 0:01:01] normal} 1-0

[Event "DVM U16 2019"]
[Site "Magedburg"]
[Date "2019.12.27"]
[Round "2"]
[White "Woelk, Tom-Frederic"]
[Black "Burian, Simon"]
[Result "1-0"]
[ECO "D35"]
[WhiteElo "2245"]
[BlackElo "2149"]
[Annotator "NA"]
[PlyCount "51"]
[EventDate "2019.12.27"]
[EventType "team-tourn"]
[EventRounds "7"]
[EventCountry "GER"]
[SourceTitle "playchess.com"]
[Source "ChessBase"]
[SourceQuality "1"]
[WhiteTeam "Hamburger SK"]
[BlackTeam "SK König Plauen"]
[BlackTeamCountry "GER"]
[TimeControl "40/5400+30:1800+30"]

1. d4 {[%emt 0:00:00]} Nf6 {[%emt 0:00:00]} 2. c4 {[%emt 0:00:00]} e6 {[%emt 0:00:00]} 3. Nc3 {[%emt 0:00:00]} d5 {[%emt 0:00:03]} 4. cxd5 {[%emt 0:00:00]} exd5 {[%emt 0:00:06]} 5. Bg5 {[%emt 0:00:01]} Be7 {[%emt 0:00:52]} 6. e3 {[%emt 0:00:06]} O-O {[%emt 0:00:47]} 7. Bd3 {[%emt 0:00:31]} h6 {[%emt 0:00:59]} 8. Bh4 {[%emt 0:01:28]} c6 {[%emt 0:01:46]} 9. Nge2 {[%emt 0:00:07]} Nbd7 {[%emt 0:04:18]} 10. O-O {[%emt 0:04:38]} Re8 {[%emt 0:02:50]} 11. f3 {[%emt 0:03:09]} a6 {[%emt 0:05:39]} 12. Qd2 {[%emt 0:01:21]} Nf8 {[%emt 0:03:40]} 13. Rad1 {[%emt 0:03:05]} b5 {[%emt 0:11:54]} 14. Bf2 {[%emt 0:15:10]} N6h7 {[%emt 0:07:58]} 15. e4 {[%emt 0:01:28]} Be6 {[%emt 0:04:54]} 16. e5 {[%emt 0:01:39]} Rc8 {[%emt 0:11:15]} 17. f4 {[%emt 0:00:26]} f5 {[%emt 0:08:24]} 18. Qc2 {[%emt 0:03:38]} Qd7 {[%emt 0:00:44]} 19. g4 {[%emt 0:00:17]} Kh8 {[%emt 0:07:15]} 20. gxf5 {[%emt 0:01:49]} Bg8 {[%emt 0:00:07]} 21. Ng3 {[%emt 0:00:32]} c5 {[%emt 0:01:16]} 22. dxc5 {[%emt 0:00:18]} Bxc5 {[%emt 0:00:40]} 23. Bxc5 {[%emt 0:00:25]} Rxc5 {[%emt 0:00:13]} 24. Qf2 {[%emt 0:00:24]} Qc6 {[%emt 0:02:28]} 25. Nce2 {[%emt 0:00:26]} Rc8 {[%emt 0:01:31]} 26. b4 {[%emt 0:00:25] normal} 1-0

[Event "DVM U16 2019"]
[Site "Magedburg"]
[Date "2019.12.27"]
[Round "2"]
[White "Biermann, Lenhard"]
[Black "Glinzner, Alva"]
[Result "1/2-1/2"]
[ECO "E09"]
[WhiteElo "2098"]
[BlackElo "1812"]
[Annotator "NA"]
[PlyCount "70"]
[EventDate "2019.12.27"]
[EventType "team-tourn"]
[EventRounds "7"]
[EventCountry "GER"]
[SourceTitle "playchess.com"]
[Source "ChessBase"]
[SourceQuality "1"]
[WhiteTeam "SG Bochum"]
[BlackTeam "Lübecker SV"]
[BlackTeamCountry "GER"]
[TimeControl "40/5400+30:1800+30"]

1. d4 {[%emt 0:00:00]} Nf6 {[%emt 0:00:00]} 2. Nf3 {[%emt 0:00:00]} e6 {[%emt 0:00:00]} 3. c4 {[%emt 0:00:00]} d5 {[%emt 0:00:00]} 4. g3 {[%emt 0:00:00]} Be7 {[%emt 0:00:20]} 5. Bg2 {[%emt 0:00:00]} c6 {[%emt 0:00:55]} 6. O-O {[%emt 0:00:11]} O-O {[%emt 0:00:14]} 7. Nbd2 {[%emt 0:00:11]} Nbd7 {[%emt 0:00:28]} 8. Qc2 {[%emt 0:00:16]} Bd6 {[%emt 0:03:00]} 9. e4 {[%emt 0:04:49]} dxe4 {[%emt 0:00:26]} 10. Nxe4 {[%emt 0:00:04]} Nxe4 {[%emt 0:00:59]} 11. Qxe4 {[%emt 0:00:03]} Nf6 {[%emt 0:00:25]} 12. Qe2 {[%emt 0:00:17]} Qc7 {[%emt 0:01:49]} 13. c5 {[%emt 0:03:00]} Be7 {[%emt 0:00:22]} 14. Bf4 {[%emt 0:10:30]} Qd8 {[%emt 0:00:36]} 15. Rfd1 {[%emt 0:10:33]} Nd5 {[%emt 0:00:42]} 16. Qd2 {[%emt 0:06:34]} f6 {[%emt 0:10:38]} 17. b4 {[%emt 0:19:51]} Bd7 {[%emt 0:03:39]} 18. Rab1 {[%emt 0:03:30]} Qe8 {[%emt 0:11:34]} 19. Qe1 {[%emt 0:05:43]} g5 {[%emt 0:12:38]} 20. Bd2 {[%emt 0:02:09]} Qg6 {[%emt 0:01:41]} 21. Qe2 {[%emt 0:05:05]} Nc7 {[%emt 0:03:53]} 22. Bc3 {[%emt 0:05:12]} Rad8 {[%emt 0:04:24]} 23. a4 {[%emt 0:02:31]} Nd5 {[%emt 0:06:56]} 24. Be1 {[%emt 0:00:11]} a6 {[%emt 0:01:12]} 25. Rb3 {[%emt 0:09:15]} Qe8 {[%emt 0:05:25]} 26. Nd2 {[%emt 0:01:11]} Rf7 {[%emt 0:01:18]} 27. Nc4 {[%emt 0:01:13]} Bf8 {[%emt 0:01:39]} 28. Bd2 {[%emt 0:01:30]} Rg7 {[%emt 0:02:09]} 29. Bf3 {[%emt 0:01:30]} Rb8 {[%emt 0:05:44]} 30. Re1 {[%emt 0:02:57]} Qc8 {[%emt 0:07:20]} 31. Bg4 {[%emt 0:06:24]} Re7 {[%emt 0:00:48]} 32. Bf3 {[%emt 0:00:15]} Qc7 {[%emt 0:03:04]} 33. Kg2 {[%emt 0:00:40]} Rbe8 {[%emt 0:02:22]} 34. Nd6 {[%emt 0:00:18]} Rd8 {[%emt 0:00:40]} 35. Nc4 {[%emt 0:00:10]} Rde8 {[%emt 0:01:04] normal} 1/2-1/2

[Event "DVM U16 2019"]
[Site "Magedburg"]
[Date "2019.12.27"]
[Round "2"]
[White "Wang, Xinyuan"]
[Black "Henning, Marvin"]
[Result "0-1"]
[ECO "E80"]
[WhiteElo "2020"]
[BlackElo "1972"]
[Annotator "NA"]
[PlyCount "86"]
[EventDate "2019.12.27"]
[EventType "team-tourn"]
[EventRounds "7"]
[EventCountry "GER"]
[SourceTitle "playchess.com"]
[Source "ChessBase"]
[SourceQuality "1"]
[WhiteTeam "Karlsruher SF"]
[BlackTeam "Reideburger SV 90 Halle"]
[WhiteTeamCountry "CHN"]
[TimeControl "40/5400+30:1800+30"]

1. d4 {[%emt 0:00:00]} Nf6 {[%emt 0:00:00]} 2. c4 {[%emt 0:00:00]} g6 {[%emt 0:00:00]} 3. Nc3 {[%emt 0:00:00]} Bg7 {[%emt 0:00:00]} 4. e4 {[%emt 0:00:00]} d6 {[%emt 0:00:04]} 5. f3 {[%emt 0:00:07]} Nbd7 {[%emt 0:01:11]} 6. Be3 {[%emt 0:00:21]} c6 {[%emt 0:04:29]} 7. Bd3 {[%emt 0:04:09]} e5 {[%emt 0:03:55]} 8. Nge2 {[%emt 0:00:41]} O-O {[%emt 0:05:10]} 9. Qd2 {[%emt 0:01:06]} Ne8 {[%emt 0:02:44]} 10. g4 {[%emt 0:02:54]} exd4 {[%emt 0:01:09]} 11. Nxd4 {[%emt 0:00:21]} Ne5 {[%emt 0:00:45]} 12. Be2 {[%emt 0:00:19]} c5 {[%emt 0:03:34]} 13. Nc2 {[%emt 0:01:54]} Be6 {[%emt 0:00:54]} 14. Na3 {[%emt 0:01:40]} Qh4+ {[%emt 0:26:08]} 15. Bf2 {[%emt 0:01:37]} Qf6 {[%emt 0:00:14]} 16. g5 {[%emt 0:04:56]} Nxf3+ {[%emt 0:07:04]} 17. Bxf3 {[%emt 0:08:03]} Qxf3 {[%emt 0:00:03]} 18. Rf1 {[%emt 0:00:07]} Bxc3 {[%emt 0:10:36]} 19. Qxc3 {[%emt 0:00:50]} Qxe4+ {[%emt 0:00:48]} 20. Kd2 {[%emt 0:01:23]} Ng7 {[%emt 0:01:19]} 21. Rae1 {[%emt 0:01:12]} Qf4+ {[%emt 0:01:40]} 22. Qe3 {[%emt 0:03:44]} Qxe3+ {[%emt 0:00:38]} 23. Bxe3 {[%emt 0:00:21]} a6 {[%emt 0:00:14]} 24. Kc3 {[%emt 0:00:43]} Nf5 {[%emt 0:00:23]} 25. Bf4 {[%emt 0:01:23]} Rab8 {[%emt 0:01:23]} 26. Nc2 {[%emt 0:04:55]} b5 {[%emt 0:00:39]} 27. b3 {[%emt 0:00:29]} Rfd8 {[%emt 0:01:23]} 28. Rd1 {[%emt 0:02:26]} a5 {[%emt 0:02:00]} 29. Rd3 {[%emt 0:08:10]} a4 {[%emt 0:01:55]} 30. Rfd1 {[%emt 0:01:06]} axb3 {[%emt 0:00:10]} 31. axb3 {[%emt 0:00:10]} bxc4 {[%emt 0:00:33]} 32. bxc4 {[%emt 0:00:10]} Rb6 {[%emt 0:00:26]} 33. Be5 {[%emt 0:11:57]} Ra6 {[%emt 0:02:13]} 34. Bf6 {[%emt 0:04:13]} Rda8 35. Rb1 {[%emt 0:01:59]} Ra4 {[%emt 0:01:47]} 36. Ne3 {[%emt 0:00:35]} Ra3+ {[%emt 0:02:31]} 37. Rb3 {[%emt 0:00:54]} Nxe3 {[%emt 0:00:50]} 38. Rxe3 {[%emt 0:00:34]} R3a4 {[%emt 0:01:25]} 39. Re4 {[%emt 0:03:14]} d5 {[%emt 0:00:14]} 40. Rh4 {[%emt 0:00:04]} d4+ {[%emt 0:00:42]} 41. Kd2 {[%emt 0:30:53]} Ra2+ {[%emt 0:30:29]} 42. Kc1 {[%emt 0:01:20]} Rg2 {[%emt 0:00:15]} 43. Kb1 {[%emt 0:00:30]} Bf5+ {[%emt 0:00:05] normal} 0-1